Cogmind - Beta 14 @@@ ROGUE MODE // 2024.12.22 @ 18:00:25 Player: Mathewnd Result: Destroyed by G-47 Trooper with Particle Gun Performance ------------- Evolutions (0) 0 Regions Visited (4) 800 Robots Destroyed (11) 55 Value Destroyed (307) 307 Prototype IDs (0) 0 Alien Tech Used (0) 0 Bonus (-121) -121 TOTAL SCORE: 1041 Bonus ------- Follower Combat Kills 85 Friendly Fire -206 Cogmind --------- Core Integrity 0/250 Matter 118/300 Energy 65/250 System Corruption 0% Temperature Cool (76) Movement Walking (190) Ox1 Location -9/Mines Parts ------- > --- POWER (1) -------- Ion Engine > --- PROPULSION (2) --- Aluminum Leg Aluminum Leg > --- UTILITY (2) ------ Large Storage Unit Power Shielding > --- WEAPON (2) ------- Medium Laser > --- INVENTORY (15) --- Makeshift Sensor Array Makeshift Sensor Array Makeshift Hacking Suite Makeshift Hammer Katana Peak State ------------ > --- POWER ------------ Ion Engine > --- PROPULSION ------- Aluminum Leg Aluminum Leg > --- UTILITY ---------- Large Storage Unit Power Shielding > --- WEAPON ----------- Medium Laser Katana > --- INVENTORY -------- Makeshift Sensor Array Makeshift Sensor Array Makeshift Hacking Suite Medium Laser Makeshift Hammer [Rating: 11] Favorites ----------- Power Light Ion Engine Engine Light Ion Engine Propulsion Aluminum Leg Treads Light Treads Leg Aluminum Leg Utility Large Storage Unit Storage Large Storage Unit Protection Power Shielding Weapon Medium Laser Energy Gun Medium Laser Ballistic Gun Assault Rifle Launcher Grenade Launcher Slashing Weapon Katana Build | -11 -10 -10 -10 -9 ------- Run | Yrd Mat Min Exi Min Slots Evolved . | . . . . . Power . | . . . . . Propulsion . | . . . . . Utility . | . . . . . Weapon . | . . . . . Parts Attached 23 | 6 3 7 . 7 Power 3 | 1 . 1 . 1 Engine 3 | 1 . 1 . 1 Core . | . . . . . Reactor . | . . . . . Propulsion 5 | 2 . 2 . 1 Treads 2 | 2 . . . . Leg 3 | . . 2 . 1 Wheel . | . . . . . Hover . | . . . . . Flight . | . . . . . Utility 3 | 1 1 1 . . Device . | . . . . . Storage 2 | 1 1 . . . Processor . | . . . . . Hackware . | . . . . . Protection 1 | . . 1 . . Artifact . | . . . . . Weapon 12 | 2 2 3 . 5 Energy Gun 3 | 1 . 1 . 1 Energy Cannon . | . . . . . Ballistic Gun 4 | 1 1 . . 2 Ballistic Cannon . | . . . . . Launcher 4 | . 1 2 . 1 Special Weapon . | . . . . . Impact Weapon . | . . . . . Slashing Weapon 1 | . . . . 1 Piercing Weapon . | . . . . . Special Melee Weapon . | . . . . . Unidentified Prototypes . | . . . . . Parts Lost 8 | . . 3 . 5 Power 2 | . . 1 . 1 Propulsion 3 | . . 2 . 1 Utility . | . . . . . Weapon 3 | . . . . 3 Highest Loss Streak 3 | . . 2 . 3 To Critical Strikes . | . . . . . Average Slot Usage (%) 92 | . 85 86 100 71 Engine 13 | . 14 14 14 2 Treads 4 | . 28 4 . . Leg 22 | . . 21 28 19 Storage 14 | . 14 14 14 14 Protection 9 | . . 3 14 14 Energy Gun 15 | . 14 20 14 14 Ballistic Gun 1 | . 13 1 . 2 Launcher 9 | . . 6 14 3 Peak Build Rating 11 | 6 7 7 9 11 Average Rating 7 | 4 6 6 8 7 On Entrance 5 | . 6 6 7 9 Naked Turns . | . . . . . Heaviest Build 29 | 14 29 29 29 28 Greatest Support 40 | 40 40 40 20 20 Greatest Overweight (x) 8 | 1 . 8 1 2 Average Overweight (x) 1 | . . 2 1 1 Largest Inventory Capacity 15 | 8 15 15 15 15 Average Capacity 14 | 7 10 15 15 15 Most Carried 9 | 5 6 6 8 9 Average Carried 5 | 3 4 4 6 8 Final Capacity 15 | 8 15 15 15 15 Final Carried 8 | 4 5 4 8 5 Class Distribution -------------------- 90% | Mutant 9% | Commander-Mutant Dominant Class ---------------- Mutant | -10/Materials Mutant | -10/Mines Mutant | -10/Exiles Mutant | -9/Mines Resources | -11 -10 -10 -10 -9 ----------- Run | Yrd Mat Min Exi Min Matter Collected 471 | 231 15 189 . 36 Remotely . | . . . . . Salvage Created 294 | . 30 217 30 17 Parts 9 | . 5 2 2 . Haulers Intercepted . | . . . . . Recyclers Shooed . | . . . . . Parts Field Recycled . | . . . . . Retrieved Matter . | . . . . . Parts Self-Destructed . | . . . . . Prevented . | . . . . . Kills | -11 -10 -10 -10 -9 ------- Run | Yrd Mat Min Exi Min Combat Hostiles Destroyed 16 | . 3 7 . 6 Guns 5 | . 1 4 . . AOE 11 | . 2 3 . 6 Classes Destroyed 3 | . 1 1 . 1 Swarmer 3 | . 3 . . . Grunt 8 | . . 7 1 . Assembled 6 | . . . . 6 Best Kill Streak 6 | . 2 2 . 6 Combat Bots Only 6 | . 2 2 . 6 Max Kills in Single Turn 4 | . 2 1 1 4 Gunslinging . | . . . . . Exploded 4 | . 2 1 . 4 Melee . | . . . . . Uniques/NPCs Destroyed . | . . . . . Combat | -11 -10 -10 -10 -9 -------- Run | Yrd Mat Min Exi Min Hostile Shots Fired 118 | . 15 68 . 35 Missed 25 | . 1 15 . 9 Damage Taken 1200 | . 115 726 . 359 Core 257 | . 40 144 . 73 Absorbed by Shields . | . . . . . Redirected to Shielding 20 | . . . . 20 Core Remaining (%) 100 | 100 . . . . Volleys Fired 58 | . 9 33 6 10 Largest 2 | . 2 2 1 2 Hottest 100 | . 80 100 50 100 Shots Fired 108 | . 18 66 6 18 Gun 88 | . 16 57 1 14 Cannon . | . . . . . Launcher 20 | . 2 9 5 4 Special . | . . . . . Kinetic 21 | . 7 11 . 3 Thermal 67 | . 9 46 1 11 Explosive 20 | . 2 9 5 4 Electromagnetic . | . . . . . Robot Hit Streak 9 | . 3 8 . 9 Robot Miss Streak 5 | . 3 3 . 5 Penetration Max . | . . . . . Secondary Targets 2 | . . 2 . . Max Gunslinging Chain 1 | . . 1 . . Shots Hit Robots 62 | . 6 46 . 10 Core Hits 40 | . 4 17 4 15 Critical Kills . | . . . . . Critical Parts Destroyed . | . . . . . Critical Strikes 2 | . . 2 . . Burn 2 | . . 2 . . Melee Attacks . | . . . . . Impact . | . . . . . Slashing . | . . . . . Piercing . | . . . . . Sneak Attacks . | . . . . . Combat Hostiles . | . . . . . Follow-up Attacks . | . . . . . Damage Inflicted 1819 | . 216 942 87 574 Guns 707 | . 92 512 . 103 Cannons . | . . . . . Explosions 1112 | . 124 430 87 471 Melee . | . . . . . Ramming . | . . . . . Kinetic 184 | . 40 117 . 27 Thermal 523 | . 52 395 . 76 Explosive 1112 | . 124 430 87 471 Electromagnetic . | . . . . . Impact . | . . . . . Slashing . | . . . . . Piercing . | . . . . . Highest Corruption . | . . . . . Average Corruption . | . . . . . Corruption Purged . | . . . . . Corruption Blocked . | . . . . . Overload Shots . | . . . . . Overflow Damage 2 | . 2 . . . Projectiles . | . . . . . Explosions 2 | . 2 . . . Melee . | . . . . . Knockbacks . | . . . . . Impact . | . . . . . Kinetic . | . . . . . Secondary . | . . . . . Self-Inflicted Damage . | . . . . . Shots . | . . . . . Rammed . | . . . . . Targets Rammed . | . . . . . Kicked . | . . . . . Crushed . | . . . . . Highest Temperature 425 | . 36 425 10 67 Average Temperature 107 | . 14 141 7 15 Received Heat Transfer 522 | . . 432 . 90 Effects 1 | . . 1 . . Shutdowns 1 | . . 1 . . Siege Activations . | . . . . . Robots Corrupted . | . . . . . Combat Hostiles . | . . . . . Parts Fried . | . . . . . Impact Corruptions . | . . . . . Robots Melted . | . . . . . Combat Hostiles . | . . . . . Parts Melted 2 | . . 2 . . Heat Transferred 1702 | . 148 1332 . 222 Parts Sabotaged . | . . . . . Parts Stolen . | . . . . . Parts Stripped . | . . . . . Power Chain Reactions . | . . . . . Alert | -11 -10 -10 -10 -9 ------- Run | Yrd Mat Min Exi Min Peak Influence 170 | . 87 170 . 81 Initial 33 | . . 33 . . Average 65 | . 54 80 . 16 Maximum Alert Level . | . . . . . Low Security (%) 100 | 100 100 100 . 100 Level 1 . | . . . . . Level 2 . | . . . . . Level 3 . | . . . . . Level 4 . | . . . . . Level 5 . | . . . . . High Security . | . . . . . Max Security . | . . . . . Squads Dispatched . | . . . . . Investigation . | . . . . . Extermination . | . . . . . Reinforcement . | . . . . . Assault . | . . . . . Garrison . | . . . . . Intercept . | . . . . . Searches Triggered . | . . . . . Construction Impeded . | . . . . . Haulers Reinforced . | . . . . . Active Scanning Responses . | . . . . . Cargo Convoy Interrupts . | . . . . . Stealth | -11 -10 -10 -10 -9 --------- Run | Yrd Mat Min Exi Min Distress Signals 1 | . 1 . . . Communications Jammed . | . . . . . Distress Signals . | . . . . . Times Spotted 38 | . 5 10 . 23 Peak Tracking Total 20 | . 5 2 . 20 Tactical Retreats 5 | . . 3 . 2 Traps | -11 -10 -10 -10 -9 ------- Run | Yrd Mat Min Exi Min Traps Triggered . | . . . . . Indirectly . | . . . . . Trap Hack Attempts . | . . . . . Triggered . | . . . . . Disarmed . | . . . . . Reprogrammed . | . . . . . Reused . | . . . . . Traps Extracted . | . . . . . Installed . | . . . . . Triggered . | . . . . . Machines | -11 -10 -10 -10 -9 ---------- Run | Yrd Mat Min Exi Min Machines Disabled 1 | . . . 1 . Max in Single Turn 1 | . . . 1 . Machines Repaired . | . . . . . Machines Dismantled . | . . . . . Machines Sabotaged . | . . . . . Overloaded Fab Kills . | . . . . . Hacking | -11 -10 -10 -10 -9 --------- Run | Yrd Mat Min Exi Min Machines Accessed 4 | . 3 . 1 . Terminals 3 | . 3 . . . Fabricators . | . . . . . Repair Stations . | . . . . . Recycling Units . | . . . . . Scanalyzers . | . . . . . Garrison Access . | . . . . . Total Hacks 17 | . 12 . 5 . Successful 10 | . 5 . 5 . Failed 7 | . 7 . . . Catastrophic . | . . . . . Database Lockouts . | . . . . . Manual 1 | . 1 . . . Terminals 12 | . 12 . . . Fabricators . | . . . . . Repair Stations . | . . . . . Recycling Units . | . . . . . Scanalyzers . | . . . . . Garrison Access . | . . . . . Terminal Hacks 9 | . 4 . 5 . Record 5 | . . . 5 . Robot Analysis 2 | . 2 . . . Terminal Index 1 | . 1 . . . Locate Traps 1 | . 1 . . . Fabricator Hacks . | . . . . . Repair Station Hacks . | . . . . . Recycling Unit Hacks . | . . . . . Scanalyzer . | . . . . . Garrison Access Hacks . | . . . . . Unauthorized Hacks 1 | . 1 . . . Terminals 1 | . 1 . . . Botnet 1 | . 1 . . . Fabricators . | . . . . . Repair Stations . | . . . . . Recycling Units . | . . . . . Scanalyzers . | . . . . . Garrison Access . | . . . . . Data Cores Recovered . | . . . . . Used . | . . . . . Hacking Detections 3 | . 3 . . . Full Trace Events . | . . . . . Feedback Events . | . . . . . Feedback Blocked . | . . . . . Robot Schematics Acquired . | . . . . . Robots Built . | . . . . . Authchips . | . . . . . Time . | . . . . . Total Robot Build Rating . | . . . . . Part Schematics Acquired . | . . . . . Parts Built . | . . . . . Authchips . | . . . . . Time . | . . . . . Total Part Build Rating . | . . . . . Parts Repaired . | . . . . . Time . | . . . . . Parts Recycled . | . . . . . Recycled Matter . | . . . . . Retrieved Matter . | . . . . . Retrieved Components . | . . . . . Parts Scanalyzed . | . . . . . Part Schematics Acquired . | . . . . . Parts Damaged . | . . . . . Bothacking | -11 -10 -10 -10 -9 ------------ Run | Yrd Mat Min Exi Min Used RIF Installer . | . . . . . Robots Hacked . | . . . . . Non-combat . | . . . . . Combat . | . . . . . Robot Hacks Applied . | . . . . . Relay Couplers Released . | . . . . . Fabnet Peak Effective % . | . . . . . Robots Rewired 4 | . . . 4 . Allies Hacked . | . . . . . Hacks Repelled . | . . . . . Allies | -11 -10 -10 -10 -9 -------- Run | Yrd Mat Min Exi Min Total Allies 4 | . . . 4 . Largest Group 4 | . . . 4 3 Highest-Rated Group 58 | . . . 58 50 Highest-Rated Ally 21 | . . . 21 21 Total Orders . | . . . . . Ally Attacks 16 | . . . . 16 Total Damage 298 | . . . . 298 Kills 8 | . . . . 8 Allies Corrupted . | . . . . . Allies Melted . | . . . . . Intel | -11 -10 -10 -10 -9 ------- Run | Yrd Mat Min Exi Min Robot Analysis Total 2 | . 2 . . . Derelict Logs Recovered 3 | . . 2 . 1 Drone Launches . | . . . . . Drone Recoveries . | . . . . . Exploration | -11 -10 -10 -10 -9 ------------- Run | Yrd Mat Min Exi Min Turns Passed 2919 | 91 288 928 1506 106 Spaces Moved 1350 | 60 158 349 755 28 Core 76 | 20 . 56 . . Treads 277 | 40 158 79 . . Legs 997 | . . 214 755 28 Wheels . | . . . . . Hover . | . . . . . Flight . | . . . . . Fastest Speed 50 | 50 160 160 190 190 Average Speed 196 | 127 160 234 190 250 Slowest Speed 450 | 160 160 450 190 260 Overloaded Moves . | . . . . . Propulsion Burnouts . | . . . . . Robots Hopped . | . . . . . Cave-ins Triggered . | . . . . . Exploration Rate (%) 43 | 3 32 81 90 11 Regions Visited 4 Branch Regions 3 Pre-discovered Areas 2 | . . 1 1 . Known Exits Taken . | . . . . . Unknown Exits Taken 4 | 1 1 1 1 . Scrap Searched 1 | . . 1 . . Spaces Dug 2 | . . . 2 . Terrain Destroyed 115 | . 3 61 22 29 Melee . | . . . . . Projectile . | . . . . . AOE 115 | . 3 61 22 29 Terrain Rammed . | . . . . . Walls Destroyed . | . . . . . Machines Disabled . | . . . . . Actions | -11 -10 -10 -10 -9 --------- Run | Yrd Mat Min Exi Min Total 1508 | 75 175 391 821 46 Wait 3 | . 3 . . . Move 1346 | 59 157 348 754 28 Hop . | . . . . . Pick Up 20 | 10 2 3 4 1 Fast Attach . | . . . . . Attach 15 | 6 1 4 . 4 Detach . | . . . . . Swap 8 | . 2 3 . 3 Drop 1 | . 1 . . . Fire 58 | . 9 33 6 10 Melee . | . . . . . Ram . | . . . . . Kick . | . . . . . Crush . | . . . . . Escape Stasis . | . . . . . Rewire 57 | . . . 57 . Trap . | . . . . . Miscellaneous . | . . . . . Route ------- -11/Scrapyard -10/Materials (discovered 2 exits: [*Min x2]) -10/Mines (discovered 3 exits: [*Mat x2] / *Exi) -10/Exiles -9/Mines History --------- Turn | Location | Event 8 | -11/Scrapyard | Discovered new exit (range 14) 92 | -11/Scrapyard | Entered Materials 125 | -10/Materials | Discovered new exit (range 12) 317 | -10/Materials | Build established: Mutant 319 | -10/Materials | Discovered new exit (range 11) 380 | -10/Materials | Entered Mines 494 | -10/Mines | Core integrity fell below 50% 1069 | -10/Mines | Learned location of Zion (-6) 1210 | -10/Mines | Discovered new exit (range 8) 1257 | -10/Mines | Discovered new exit (range 7) 1301 | -10/Mines | Deemed a non-threat by the Exiles lab entrance 1301 | -10/Mines | Discovered new exit (range 5) 1308 | -10/Mines | Entered Exiles 1308 | -10/Exiles | Found Exiles lab destroyed 2382 | -10/Exiles | Discovered new exit (range 14) 2814 | -10/Exiles | Entered Mines 2814 | -9/Mines | Accompanied by 3 allies 2815 | -9/Mines | Assembled infested the area 2820 | -9/Mines | Assisted by a Guerilla fighting off Assembled 2839 | -9/Mines | Core integrity fell below 20% 2859 | -9/Mines | Learned location of 1 exit from Materials 2868 | -9/Mines | Lost 4 allies 2883 | -9/Mines | Lost 3 parts (1p1n1w) 2920 | -9/Mines | Destroyed by G-47 Trooper with Particle Gun Last Messages --------------- D2-17V(h) destroyed. Slug penetrates as-30065. as-30065 destroyed. Slug penetrates Earth. as-28697 destroyed. The unstable cave ceiling collapses. as-92469 destroyed. Commando 1a destroyed. Acquired Katana. Aluminum Leg destroyed. U-05 Engineer builds a Wall. The unstable cave ceiling collapses. Acquired 36 matter. Grenade Launcher destroyed. The unstable cave ceiling collapses. Flexi-carbon Leg crushed. Acquired derelict log, extracted data. Data stored: Materials exits (x1). Assault Rifle destroyed. Med. Laser destroyed. Map ----- +----------------------------------------------------+ | ?????????????????????????????????????????????????? | | ?????????????????????????????????????????????????? | | ?????????????????????????????????????????????????? | | ?????????????????????????????????????????????????? | | ?????????????????????????????????????????????????? | | ?????????????????????????????????????????????????? | | ?????????????????????????????????????????????????? | | ?????????????????????????????????????????????????? | | ???????????? ????????????????????????????????????? | | ?????????? #???????????????????????????????????? | | ??????????% #??????????????????????????????????? | | ???????? ??????????????????????????????????? | | ????? #?????????????????????????????????? | | ?????# " #?????????????????????????????????? | | ????## ###???????????????????????????????? | | ????# # # #???????????????????????????????? | | ????? #???????????????????????????????? | | ?????? # ????????????????????????????????? | | ???????# % ????????????????????????????????? | | ????????# % # #????????????????????????????????? | | ????????# = %*##???????????????????????????????? | | ?????????## [*! #???????????????????????????????? | | ??????#####! [ #???????????????????????????????? | | ??????# =% =%#???????????????????????????????? | | ??????# %*#?????####### ????????? | | ??????# ### =##?????# @g #????????? | | ??????#????# ###??????# #####t ????????? | | ???????????#[ #????????# #???????????????????????? | | ???????????# =#????????# #???????????????????????? | | ???????????# ###??????# #???????????????????????? | | ???????????# #???#### #???????????????????????? | | ???????????#### #??## # ###?????????????????????? | | ??????????????# #?## ##????????????????????? | | ??????????????# ### #????????????????????? | | ??????????????# #????????????????????? | | ??????????????#=###### ##????????????????????? | | ??????????????# #????#######?????????????????????? | | ?????????????? #????????????????????????????????? | | ?????????????####????????????????????????????????? | | ?????????????????????????????????????????????????? | | ?????????????????????????????????????????????????? | | ?????????????????????????????????????????????????? | | ?????????????????????????????????????????????????? | | ?????????????????????????????????????????????????? | | ?????????????????????????????????????????????????? | | ?????????????????????????????????????????????????? | | ?????????????????????????????????????????????????? | | ?????????????????????????????????????????????????? | | | | | +----------------------------------------------------+ Best States ------------- Heat Dissipation 25 Energy Generation 10 Energy Capacity 250 Matter Stores 272 Matter Capacity 300 Sight Range 16 Terrain Scan Density 10 Power Shielding 33 Evasion (%) 50 Recoil Reduction 2 Item Schematics ----------------- None Robot Schematics ------------------ None Fabricated ------------ Nothing Alien Tech Used ----------------- None Achievements -------------- None Challenges ------------ None Game ------ Seed WeaponRemoteProjector Manual? 0 Play Time 00:14:52 Cumulative 49.8 hours Start 2024.12.22 @ 17:44:33 End 2024.12.22 @ 18:00:25 Sessions 1 Manual Loads 0 Difficulty Rogue Special Mode None Game No. 55 Rogue 55 Adventurer 0 Explorer 0 Win Type - Total 1 Types 1/0/0/0/0/0/0/0/0 Lore% 20 Gallery% 34 Achievement% 33 Wizard Run 0 Options --------- Layout 1 ASCII 0 Keyboard 0 Movement Mouse Keybinds 0 Fullscreen 1 Font 24/Smallcaps Map View 50x35 Zoom Use 0% Tactical HUD 0 Map Filters NONE Filters NONE Steam 1 RUN: 902c0f9d-5893-4012-a03c-319fc3646456